bitfinex/quotes_BTCUSD_20241124
["timestamp","ask_amount","ask_price","bid_price","bid_amount"]
[1732442539787,0.08342755,97768.0,97767.0,0.02336344]
[1732442540231,0.08342755,97768.0,97767.0,0.02336696]
[1732442540665,0.08342755,97768.0,97767.0,0.023369]
[1732442542936,0.08342755,97768.0,97767.0,0.01140819]
[1732442543407,0.08342755,97768.0,97767.0,0.00833343]
[1732442547371,0.0017176,97768.0,97767.0,0.00833343]
[1732442548095,0.0017176,97768.0,97767.0,0.020305]
[1732442550967,0.0017176,97768.0,97767.0,0.0008588]
[1732442551194,0.0017176,97768.0,97767.0,0.01282955]
[1732442551452,0.0017176,97768.0,97767.0,0.02031039]
[1732442554947,0.0017176,97768.0,97767.0,0.02030918]
[1732442568551,0.0017176,97768.0,97767.0,0.0008588]
[1732442568763,0.0017176,97768.0,97767.0,0.02031415]
[1732442571675,0.0017176,97768.0,97767.0,0.0008588]
[1732442571894,0.0017176,97768.0,97767.0,0.0203161]
[1732442575703,0.0017176,97768.0,97767.0,0.02031645]
[1732442580426,0.0017176,97768.0,97738.0,0.05323054]
[1732442580667,0.0476,97767.0,97736.0,0.00188205]
[1732442580907,0.0476,97767.0,97739.0,0.00429991]
[1732442581135,0.0476,97767.0,97736.0,0.000859]
[1732442582604,0.0792,97766.0,97736.0,0.000859]
[1732442583572,0.0792,97766.0,97738.0,0.0451]
[1732442583833,0.002,97757.0,97736.0,0.000859]
[1732442584058,0.108516,97736.0,97701.0,0.2]
[1732442584280,0.108516,97735.0,97701.0,0.2]
[1732442584994,0.108516,97735.0,97703.0,0.2]
[1732442585223,0.108516,97735.0,97704.0,0.15]
[1732442585685,0.108516,97735.0,97705.0,0.023]
[1732442586436,0.108516,97735.0,97704.0,0.023]
[1732442586884,0.108516,97735.0,97718.0,0.15]
[1732442587108,0.108516,97735.0,97720.0,0.0387]
[1732442587816,0.237616,97744.0,97721.0,0.00102321]
[1732442588075,0.2,97766.0,97721.0,0.00102321]
[1732442588076,0.108516,97740.0,97722.0,0.0451]
[1732442588311,0.108516,97740.0,97723.0,0.00102316]
[1732442588557,0.108516,97740.0,97722.0,0.0451]
[1732442588558,0.108516,97740.0,97724.0,0.00102316]
[1732442588787,0.108516,97740.0,97722.0,0.0451]
[1732442588788,0.108516,97740.0,97723.0,0.00102316]
[1732442589684,0.108516,97740.0,97722.0,0.0451]
[1732442591419,0.108516,97740.0,97723.0,0.00397544]
[1732442592049,0.107516,97740.0,97723.0,0.00397544]
[1732442592472,0.107516,97740.0,97724.0,0.00743319]
[1732442592691,0.107516,97740.0,97725.0,0.00743319]
[1732442592916,0.107516,97740.0,97726.0,0.00743319]
[1732442593129,0.107516,97740.0,97727.0,0.00743319]
[1732442593345,0.107516,97740.0,97728.0,0.00743319]
[1732442593560,0.107516,97740.0,97729.0,0.00743319]
[1732442593798,0.107516,97740.0,97730.0,0.00743319]
[1732442594055,0.107516,97740.0,97722.0,0.045959]
[1732442594056,0.107516,97740.0,97731.0,0.00743319]
[1732442594279,0.107516,97740.0,97732.0,0.00743319]
[1732442594505,0.107516,97740.0,97733.0,0.00743319]
[1732442594717,0.107516,97740.0,97734.0,0.00743319]
[1732442594930,0.107516,97740.0,97735.0,0.00743319]
[1732442595139,0.107516,97740.0,97736.0,0.00743319]
[1732442595398,0.107516,97740.0,97722.0,0.045959]
[1732442595628,0.107516,97740.0,97737.0,0.00743248]
[1732442595889,0.107516,97740.0,97738.0,0.00743248]
[1732442596107,0.107516,97740.0,97739.0,0.00743248]
[1732442596348,0.107516,97740.0,97700.0,0.49747158]
[1732442596349,0.155316,97740.0,97712.0,0.023]
[1732442596780,0.155316,97740.0,97713.0,0.00397867]
[1732442599504,0.155316,97740.0,97714.0,0.0022]
[1732442599928,0.155316,97740.0,97715.0,0.00400998]
[1732442600404,0.155316,97740.0,97714.0,0.0022]
[1732442603430,0.155316,97740.0,97715.0,0.00401552]
[1732442604742,0.1570344,97740.0,97715.0,0.00401552]
[1732442605169,0.048,97739.0,97715.0,0.00401552]
[1732442605614,0.043,97739.0,97715.0,0.00401552]
[1732442606735,0.043,97739.0,97716.0,0.01187581]
[1732442606971,0.043,97739.0,97717.0,0.01187581]
[1732442607194,0.1092344,97740.0,97718.0,0.01187581]
[1732442607446,0.1092344,97740.0,97719.0,0.00503707]
[1732442607887,0.1092344,97740.0,97719.0,0.00102315]
[1732442608119,0.1092344,97740.0,97715.0,0.00102315]
[1732442608340,0.1092344,97740.0,97716.0,0.00742364]
[1732442608569,0.1092344,97740.0,97717.0,0.0084468]
[1732442608800,0.1092344,97740.0,97718.0,0.00742364]
[1732442609043,0.1092344,97740.0,97719.0,0.0084468]
[1732442609261,0.0804,97739.0,97720.0,0.00742364]
[1732442609564,0.0804,97739.0,97721.0,0.00844676]
[1732442609792,0.0804,97739.0,97722.0,0.05352485]
[1732442610052,0.0804,97739.0,97723.0,0.01246075]
[1732442610285,0.1284,97739.0,97724.0,0.00742485]
[1732442610501,0.1284,97739.0,97723.0,0.0050359]
[1732442610502,0.1284,97739.0,97725.0,0.00844797]
[1732442610728,0.1284,97739.0,97726.0,0.00742485]
[1732442610953,0.1284,97739.0,97727.0,0.00844797]
[1732442611175,0.1284,97739.0,97728.0,0.00742485]
[1732442611415,0.1284,97739.0,97729.0,0.00844797]
[1732442611645,0.1284,97739.0,97730.0,0.00742485]
[1732442611865,0.1284,97739.0,97731.0,0.00742485]
[1732442612105,0.1284,97739.0,97732.0,0.00742485]
[1732442612332,0.1284,97739.0,97733.0,0.00742485]
[1732442612573,0.1284,97739.0,97723.0,0.00102312]
[1732442612574,0.1284,97739.0,97734.0,0.00742485]
[1732442612794,0.1284,97739.0,97735.0,0.00742485]
[1732442613079,0.1284,97739.0,97736.0,0.00742485]
[1732442613303,0.1284,97739.0,97737.0,0.00742485]
[1732442613528,0.1284,97739.0,97738.0,0.00742485]
[1732442614731,0.1284,97739.0,97723.0,0.00102312]
[1732442614979,0.1284,97739.0,97724.0,0.00742617]
[1732442615212,0.1284,97739.0,97725.0,0.01245924]
[1732442615436,0.1284,97739.0,97726.0,0.00742617]
[1732442615663,0.1284,97739.0,97727.0,0.00742617]
[1732442615885,0.1284,97739.0,97728.0,0.00742617]
[1732442616118,0.1284,97739.0,97729.0,0.00742617]
[1732442616359,0.1284,97739.0,97730.0,0.00742617]
[1732442616594,0.1284,97739.0,97731.0,0.00742617]
[1732442616872,0.1284,97739.0,97732.0,0.00742617]
[1732442617101,0.1284,97739.0,97733.0,0.00742617]
[1732442617547,0.1284,97739.0,97734.0,0.00742617]
[1732442617550,0.1284,97739.0,97734.0,0.00742757]
[1732442617773,0.1284,97739.0,97735.0,0.00742757]
[1732442617995,0.1284,97739.0,97736.0,0.00742757]
[1732442618244,0.1284,97739.0,97737.0,0.00742757]
[1732442618471,0.1284,97739.0,97738.0,0.00742757]
[1732442620333,0.1284,97739.0,97738.0,0.00742675]
[1732442625474,0.1284,97739.0,97729.0,0.00102312]
[1732442625475,0.06465716,97739.0,97728.0,0.15]
[1732442625913,0.06465716,97739.0,97729.0,0.00366892]
[1732442627023,0.06465716,97739.0,97722.0,0.0461]
[1732442627239,0.06465716,97739.0,97723.0,0.00370382]
[1732442629083,0.06637516,97739.0,97723.0,0.00370382]
[1732442629777,0.06637516,97739.0,97724.0,0.00102312]
[1732442630214,0.06637516,97739.0,97725.0,0.00370302]
[1732442630430,0.06637516,97739.0,97726.0,0.00102311]
[1732442630651,0.06637516,97739.0,97727.0,0.01206157]
[1732442630868,0.06637516,97739.0,97728.0,0.00733623]
[1732442631086,0.06637516,97739.0,97729.0,0.00835935]
[1732442631306,0.06637516,97739.0,97730.0,0.00733623]
[1732442631528,0.001718,97739.0,97732.0,0.15]
[1732442631760,0.001718,97739.0,97738.0,0.405684]
[1732442631990,0.001718,97739.0,97738.0,0.57508003]
[1732442632257,0.001718,97739.0,97738.0,0.59083178]
[1732442632706,0.001718,97739.0,97738.0,0.58349555]
[1732442632933,0.001718,97739.0,97738.0,0.58549555]
[1732442633161,0.001718,97739.0,97738.0,0.60649555]
[1732442633607,0.001718,97766.0,97755.0,0.092484]
[1732442633830,0.001718,97766.0,97756.0,0.1751422]
[1732442634053,0.001718,97766.0,97756.0,0.17880726]
[1732442635421,0.001718,97766.0,97756.0,0.68773501]
[1732442635641,0.001718,97766.0,97758.0,0.15]
[1732442635865,0.001718,97766.0,97759.0,0.0371354]
[1732442637839,0.001718,97766.0,97760.0,0.00336002]
[1732442638049,0.001718,97766.0,97761.0,0.00102263]
[1732442638262,0.001718,97766.0,97761.0,0.00335962]
[1732442638473,0.001718,97766.0,97762.0,0.00102263]
[1732442638694,0.001718,97766.0,97762.0,0.00331707]
[1732442638904,0.001718,97766.0,97763.0,0.00102262]
[1732442639113,0.001718,97766.0,97763.0,0.00331667]
[1732442639335,0.001718,97766.0,97764.0,0.00102262]
[1732442639559,0.001718,97766.0,97764.0,0.00331627]
[1732442639811,0.001718,97766.0,97756.0,0.18297022]
[1732442639812,0.001718,97766.0,97765.0,0.00102263]
[1732442640060,0.001718,97766.0,97765.0,0.00331587]
[1732442640302,0.001718,97766.0,97757.0,0.15102263]
[1732442640533,0.001718,97766.0,97765.0,0.00331587]
[1732442640745,0.001718,97766.0,97757.0,0.15102263]
[1732442640969,0.001718,97766.0,97765.0,0.00331587]
[1732442641191,0.001718,97766.0,97757.0,0.15102263]
[1732442641410,0.001718,97766.0,97765.0,0.00331587]
[1732442641663,0.001718,97766.0,97757.0,0.15102263]
[1732442642086,0.001718,97766.0,97758.0,0.00331867]
[1732442642331,0.001718,97766.0,97759.0,0.00102263]
[1732442643010,0.001718,97766.0,97760.0,0.00300584]
[1732442643239,0.001718,97766.0,97761.0,0.00102263]
[1732442643466,0.001718,97766.0,97762.0,0.00300504]
[1732442643704,0.001718,97766.0,97763.0,0.00102263]
[1732442644376,0.001718,97766.0,97764.0,0.00300205]
[1732442644591,0.001718,97766.0,97765.0,0.00102263]
[1732442645032,0.001718,97766.0,97765.0,0.00300122]
[1732442645675,0.001718,97766.0,97757.0,0.00102263]
[1732442645886,0.001718,97766.0,97765.0,0.00300122]
[1732442646101,0.001718,97766.0,97757.0,0.00102263]
[1732442646311,0.001718,97766.0,97765.0,0.00300122]
[1732442646536,0.001718,97766.0,97757.0,0.00102263]
[1732442646758,0.001718,97766.0,97765.0,0.00300122]
[1732442646998,0.001718,97766.0,97757.0,0.00102263]
[1732442647234,0.001718,97766.0,97765.0,0.00300122]
[1732442647697,0.001718,97766.0,97757.0,0.00102263]
[1732442647920,0.001718,97766.0,97765.0,0.00300122]
[1732442648175,0.001718,97766.0,97757.0,0.00102263]
[1732442648390,0.001718,97766.0,97765.0,0.00300122]
[1732442648617,0.084818,97766.0,97755.0,0.18297022]
[1732442648843,0.084818,97766.0,97765.0,0.00300122]
[1732442649051,0.084818,97766.0,97756.0,0.15]
[1732442649274,0.084818,97766.0,97756.0,0.15102276]
[1732442649504,0.084818,97766.0,97757.0,0.00300316]
[1732442649715,0.084818,97766.0,97758.0,0.00102277]
[1732442650160,0.084818,97766.0,97759.0,0.00300236]
[1732442650382,0.084818,97766.0,97760.0,0.00102277]
[1732442650845,0.084818,97766.0,97761.0,0.00300156]
[1732442651569,0.084818,97766.0,97757.0,0.00102276]
[1732442651782,0.084818,97766.0,97762.0,0.00300414]
[1732442652001,0.084818,97766.0,97756.0,0.15]
[1732442652221,0.0831,97764.0,97763.0,0.00300651]
[1732442652445,0.045,97765.0,97723.0,0.0483]
[1732442652446,0.0831,97761.0,97743.0,0.18297022]
[1732442652686,0.0831,97761.0,97744.0,0.00301352]
[1732442653597,0.0831,97761.0,97745.0,0.00102287]
[1732442654066,0.0831,97761.0,97746.0,0.00301272]
[1732442654288,0.0831,97761.0,97747.0,0.00102287]
[1732442654554,0.0831,97761.0,97756.0,0.0008588]
[1732442666109,0.001718,97766.0,97756.0,0.0008588]
[1732442666547,0.0017176,97761.0,97756.0,0.0008588]
[1732442669646,0.0017176,97761.0,97757.0,0.00102277]
[1732442672099,0.0017176,97761.0,97758.0,0.0030223]
[1732442672310,0.0017176,97761.0,97759.0,0.00102277]
[1732442672531,0.0017176,97761.0,97757.0,0.00102277]
[1732442672753,0.0017176,97761.0,97760.0,0.0030215]
[1732442672975,0.0017176,97761.0,97757.0,0.00102277]
[1732442674795,0.0017176,97761.0,97758.0,0.00300949]
[1732442675052,0.0017176,97761.0,97759.0,0.00102277]
[1732442675539,0.0017176,97761.0,97757.0,0.00102277]
[1732442675756,0.0017176,97761.0,97760.0,0.00300869]
[1732442676003,0.0017176,97761.0,97757.0,0.00102277]
[1732442676230,0.0017176,97761.0,97760.0,0.00300869]
[1732442676461,0.0017176,97761.0,97757.0,0.00102277]
[1732442676704,0.0017176,97761.0,97760.0,0.00300869]
[1732442676926,0.0017176,97761.0,97758.0,0.00300988]
[1732442677159,0.0017176,97761.0,97759.0,0.00102277]
[1732442677403,0.0017176,97761.0,97759.0,0.15300948]
[1732442677653,0.0017176,97761.0,97760.0,0.00102277]
[1732442677874,0.0017176,97761.0,97760.0,0.00403185]
[1732442682435,0.0017176,97761.0,97760.0,0.15403185]
[1732442682644,0.0017176,97761.0,97760.0,0.00403185]
[1732442684483,0.0017176,97761.0,97760.0,0.31289793]
[1732442684694,0.0017176,97761.0,97760.0,0.15300908]
[1732442684923,0.0017176,97761.0,97760.0,0.15403185]
[1732442686935,0.0017176,97761.0,97760.0,0.00403185]
[1732442688223,0.0017176,97761.0,97760.0,0.15403185]
[1732442689290,0.0017176,97761.0,97760.0,0.46297929]
[1732442689494,0.0017176,97761.0,97760.0,0.46195652]
[1732442689911,0.0017176,97761.0,97760.0,0.15300908]
[1732442690150,0.0017176,97761.0,97760.0,0.15403185]
[1732442690369,0.0017176,97761.0,97760.0,0.46297929]
[1732442690607,0.0017176,97761.0,97760.0,0.46195652]
[1732442692796,0.1275176,97761.0,97760.0,0.15300908]
[1732442693020,0.1275176,97761.0,97760.0,0.00300908]
[1732442693021,0.1245176,97761.0,97760.0,0.00300908]
[1732442693486,0.0759,97760.0,97756.0,0.0008588]
[1732442693945,0.0759,97760.0,97757.0,0.00300248]
[1732442694163,0.0759,97760.0,97756.0,0.0008588]
[1732442694404,0.0759,97760.0,97758.0,0.00300208]
[1732442694646,0.0759,97760.0,97757.0,0.00300248]
[1732442694859,0.0759,97760.0,97756.0,0.0008588]
[1732442695292,0.0759,97760.0,97757.0,0.00300248]
[1732442695735,0.0759,97760.0,97756.0,0.0008588]
[1732442695956,0.0489,97759.0,97756.0,0.0008588]
[1732442696177,0.0489,97757.0,97756.0,0.0008588]
[1732442696433,0.1305,97757.0,97756.0,0.0008588]
[1732442705183,0.1305,97757.0,97749.0,0.16309119]
[1732442705431,0.1305,97757.0,97743.0,0.15]
[1732442705643,0.1305,97757.0,97731.0,0.092484]
[1732442705848,0.1305,97757.0,97744.0,0.00301483]
[1732442706071,0.1305,97757.0,97731.0,0.092484]
[1732442706527,0.1305,97757.0,97730.0,0.092484]
[1732442706744,0.0816,97757.0,97735.0,0.18297022]
[1732442706955,0.0489,97756.0,97732.0,0.00301964]
[1732442707166,0.0489,97756.0,97736.0,0.18297022]
[1732442707375,0.0489,97756.0,97736.0,0.18598826]
[1732442707598,0.0489,97756.0,97737.0,0.15]
[1732442707806,0.0489,97756.0,97737.0,0.15290057]
[1732442708444,0.0489,97756.0,97742.0,0.15]
[1732442708854,0.0489,97756.0,97743.0,0.00289817]
[1732442710512,0.0831,97755.0,97743.0,0.00289817]
[1732442710739,0.0831,97753.0,97743.0,0.00289817]
[1732442710954,0.0831,97751.0,97731.0,0.18297022]
[1732442711171,0.0489,97748.0,97731.0,0.18297022]
[1732442711384,0.0489,97748.0,97744.0,0.00289856]
[1732442711609,0.0489,97748.0,97731.0,0.18297022]
[1732442711831,0.0489,97748.0,97745.0,0.00289616]
[1732442712269,0.0489,97748.0,97732.0,0.15]
[1732442712796,0.0489,97748.0,97743.0,0.0008588]
[1732442713639,0.0489,97746.0,97743.0,0.0008588]
[1732442716870,0.0456,97744.0,97743.0,0.0008588]
[1732442717089,0.124,97744.0,97743.0,0.0008588]
[1732442717772,0.254516,97744.0,97743.0,0.0008588]
[1732442718006,0.256516,97744.0,97743.0,0.0008588]
[1732442718230,0.254516,97744.0,97743.0,0.0008588]
[1732442721664,0.147,97744.0,97743.0,0.0008588]
[1732442721880,0.25553866,97744.0,97743.0,0.0008588]
[1732442722107,0.254516,97744.0,97743.0,0.0008588]
[1732442723220,0.124,97744.0,97743.0,0.0008588]
[1732442723648,0.231516,97744.0,97743.0,0.0008588]
[1732442724340,0.231516,97744.0,97743.0,0.0018588]
[1732442734667,0.231516,97744.0,97689.0,0.002]
[1732442734898,0.231516,97744.0,97711.0,0.00051202]
[1732442734899,0.0012789,97743.0,97711.0,0.00051202]
[1732442735146,0.0012789,97743.0,97711.0,0.00381827]
[1732442735400,0.0472,97742.0,97711.0,0.00381827]
[1732442735658,0.083,97741.0,97711.0,0.00381827]
[1732442736153,0.083,97741.0,97710.0,0.2565]
[1732442736154,0.083,97741.0,97710.0,0.07414813]
[1732442736417,0.083,97741.0,97712.0,0.00343258]
[1732442736673,0.083,97741.0,97711.0,0.00343279]
[1732442736936,0.083,97741.0,97713.0,0.00343238]
[1732442737196,0.083,97741.0,97712.0,0.00343258]
[1732442737455,0.083,97741.0,97714.0,0.00343217]
[1732442737684,0.083,97741.0,97713.0,0.00343238]
[1732442737907,0.0479,97740.0,97715.0,0.00343196]
[1732442738206,0.0479,97740.0,97714.0,0.00343217]
[1732442738457,0.0479,97740.0,97716.0,0.00343155]
[1732442738716,0.0479,97740.0,97710.0,0.22414813]
[1732442738717,0.0479,97740.0,97715.0,0.00343175]
[1732442738951,0.0479,97740.0,97717.0,0.00343134]
[1732442739190,0.0479,97740.0,97716.0,0.00343155]
[1732442739420,0.0479,97740.0,97710.0,0.22414813]
[1732442739663,0.0816,97739.0,97710.0,0.22414813]
[1732442739908,0.0816,97739.0,97711.0,0.00343393]
[1732442740161,0.0479,97738.0,97711.0,0.00343393]
[1732442742437,0.0479,97736.0,97711.0,0.00343393]
[1732442745586,0.0474,97734.0,97711.0,0.00343393]
[1732442748058,0.0832,97733.0,97711.0,0.00429283]
[1732442748283,0.0478,97732.0,97711.0,0.00429283]
[1732442749007,0.0478,97732.0,97711.0,0.00373313]
[1732442751736,0.0478,97730.0,97711.0,0.00373313]
[1732442753580,0.0478,97730.0,97711.0,0.15373313]
[1732442754297,0.0478,97730.0,97711.0,0.46261799]
[1732442754538,0.0478,97730.0,97711.0,0.31283742]
[1732442754762,0.0478,97730.0,97712.0,0.15]
[1732442755248,0.0478,97730.0,97712.0,0.15340089]
[1732442755473,0.0478,97730.0,97712.0,0.46250518]
[1732442756216,0.0478,97728.0,97712.0,0.15340089]
[1732442756449,0.0478,97726.0,97712.0,0.00340089]
[1732442756704,0.0478,97724.0,97713.0,0.15]
[1732442756930,0.0478,97722.0,97713.0,0.15]
[1732442757190,0.0478,97722.0,97714.0,0.00339923]
[1732442758333,0.0478,97722.0,97715.0,0.15]
[1732442758563,0.0476,97720.0,97715.0,0.15]
[1732442758844,0.0476,97720.0,97716.0,0.0033984]
[1732442759073,0.0476,97720.0,97717.0,0.15]
[1732442759316,0.0476,97720.0,97717.0,0.45910429]
[1732442759543,0.0476,97720.0,97718.0,0.00339767]
[1732442761374,0.0476,97720.0,97719.0,0.15]
[1732442761836,0.0476,97720.0,97719.0,0.15339798]
[1732442762528,0.1228,97720.0,97719.0,0.15339798]
[1732442763015,0.1228,97720.0,97719.0,0.00339798]
[1732442763484,0.1265,97722.0,97711.0,0.31046627]
[1732442763742,0.0472,97721.0,97711.0,0.31046627]
[1732442763963,0.0472,97719.0,97712.0,0.00340582]
[1732442764194,0.0472,97717.0,97712.0,0.15340582]
[1732442764422,0.0472,97715.0,97712.0,0.00340582]
[1732442764666,0.0472,97713.0,97712.0,0.00340582]
[1732442764909,0.1265,97713.0,97712.0,0.00340582]
[1732442769188,0.1265,97713.0,97711.0,0.0008589]
[1732442769417,0.1265,97713.0,97712.0,0.00340732]
[1732442771393,0.1265,97713.0,97712.0,0.46284859]
[1732442771646,0.1265,97713.0,97712.0,0.15340732]
[1732442772119,0.00127917,97731.0,97712.0,0.15340732]
[1732442772378,0.01702978,97732.0,97712.0,0.15340732]
[1732442772379,0.1265,97720.0,97717.0,0.15]
[1732442772862,0.1265,97720.0,97718.0,0.00340753]
[1732442773842,0.1282186,97720.0,97718.0,0.00340753]
[1732442782610,0.1282186,97720.0,97718.0,0.15340753]
[1732442784940,0.1282186,97720.0,97718.0,0.00340753]
[1732442785168,0.1282186,97720.0,97718.0,0.15340753]
[1732442791361,0.023,97719.0,97718.0,0.15340753]
[1732442791606,0.0687,97719.0,97718.0,0.15340753]
[1732442792277,0.0687,97719.0,97718.0,0.00340753]
[1732442793188,0.0687,97719.0,97713.0,0.15]
[1732442793420,0.0687,97719.0,97718.0,0.00340877]
[1732442793645,0.0687,97719.0,97712.0,0.15]
[1732442793893,0.0687,97719.0,97714.0,0.0034096]
[1732442794167,0.0687,97719.0,97712.0,0.45949447]
[1732442794400,0.0687,97719.0,97715.0,0.0034094]
[1732442794624,0.0687,97719.0,97712.0,0.15]
[1732442794842,0.1231,97718.0,97716.0,0.00340919]
[1732442795063,0.023,97717.0,97716.0,0.00340919]
[1732442795289,0.023,97717.0,97712.0,0.15]
[1732442795776,0.023,97717.0,97712.0,0.45949447]
[1732442796009,0.023,97717.0,97712.0,0.15]
[1732442796265,0.023,97715.0,97712.0,0.15]
[1732442796735,0.023,97715.0,97711.0,0.0008589]
[1732442798351,0.023,97715.0,97712.0,0.00340919]
[1732442802393,0.0468,97716.0,97712.0,0.00340919]
[1732442802394,0.257416,97713.0,97712.0,0.00340919]
[1732442802603,0.023,97703.0,97697.0,0.25107151]
[1732442802822,0.023,97701.0,97697.0,0.25107151]
[1732442803259,0.023,97701.0,97697.0,0.66176038]
[1732442803695,0.023,97701.0,97698.0,0.15]
[1732442803920,0.023,97699.0,97698.0,0.15]
[1732442805589,0.01505037,97699.0,97698.0,0.15]
[1732442806086,0.1236,97700.0,97698.0,0.15]
[1732442809131,0.1236,97700.0,97698.0,0.1508593]
[1732442810159,0.1236,97700.0,97699.0,0.00358868]
[1732442810624,0.0499,97708.0,97699.0,0.00358868]
[1732442811127,0.0802,97715.0,97699.0,0.00358868]
[1732442812534,0.0802,97715.0,97703.0,0.15]
[1732442812752,0.0802,97715.0,97703.0,0.45947841]
[1732442812979,0.0802,97715.0,97704.0,0.00717844]
[1732442813235,0.0802,97715.0,97704.0,0.01076712]
[1732442813505,0.0802,97715.0,97705.0,0.00717844]
[1732442813731,0.0802,97715.0,97706.0,0.01076663]
[1732442814176,0.0802,97715.0,97706.0,0.00358819]
[1732442814619,0.0802,97715.0,97704.0,0.45947841]
[1732442814873,0.0802,97715.0,97707.0,0.00358794]
[1732442815309,0.0802,97715.0,97704.0,0.45947841]
[1732442815531,0.0831,97721.0,97708.0,0.0035877]
[1732442815750,0.0831,97721.0,97714.0,0.45947841]
[1732442815986,0.0831,97721.0,97714.0,0.15]
[1732442816225,0.0831,97721.0,97715.0,0.00358574]
[1732442816897,0.0831,97721.0,97715.0,0.15358574]
[1732442819708,0.0831,97721.0,97717.0,0.15]
[1732442820006,0.0831,97721.0,97718.0,0.00358501]
[1732442823570,0.0831,97721.0,97700.0,0.0488]
[1732442823787,0.0831,97721.0,97719.0,0.00341661]
[1732442824017,0.0831,97721.0,97700.0,0.0488]
[1732442824457,0.0831,97721.0,97701.0,0.00342102]
[1732442826311,0.0831,97721.0,97695.0,0.04818261]
[1732442826555,0.0798186,97721.0,97695.0,0.04818261]
[1732442826781,0.0798186,97721.0,97696.0,0.00399269]
[1732442828207,0.0798186,97721.0,97698.0,0.15]
[1732442828698,0.0798186,97721.0,97699.0,0.00399209]
[1732442829473,0.0798186,97721.0,97699.0,0.0521747]
[1732442829712,0.0798186,97721.0,97700.0,0.02848267]
[1732442829948,0.0798186,97721.0,97701.0,0.00399149]
[1732442831069,0.0017186,97736.0,97710.0,0.15]
[1732442831070,0.0787,97729.0,97710.0,0.15]
[1732442831293,0.0478,97730.0,97712.0,0.19818261]
[1732442831538,0.0017188,97721.0,97713.0,0.00987437]
[1732442831772,0.0017188,97721.0,97714.0,0.00717437]
[1732442832241,0.0017188,97721.0,97713.0,0.00668721]
[1732442832242,0.0017188,97721.0,97715.0,0.01115828]
[1732442832459,0.0017188,97721.0,97716.0,0.00717437]
[1732442832672,0.0017188,97721.0,97717.0,0.00717437]
[1732442832980,0.0017188,97721.0,97718.0,0.00717437]
[1732442833197,0.0017188,97721.0,97719.0,0.00717437]
[1732442833419,0.0017188,97721.0,97720.0,0.00717437]
[1732442833891,0.0017188,97721.0,97720.0,0.01115679]
[1732442834119,0.0017188,97721.0,97720.0,0.22815679]
[1732442834343,0.0017188,97721.0,97720.0,0.2763394]
[1732442834796,0.0017188,97721.0,97720.0,0.27611818]
[1732442835018,0.0017186,97736.0,97721.0,0.15]
[1732442835520,0.0017186,97736.0,97722.0,0.00398631]
[1732442836209,0.0017186,97736.0,97727.0,0.15]
[1732442836712,0.0017186,97736.0,97728.0,0.00398451]
[1732442837694,0.1452,97735.0,97728.0,0.00398451]
[1732442837925,0.1452,97733.0,97728.0,0.00398451]
[1732442838147,0.023,97730.0,97710.0,0.15]
[1732442838391,0.023,97730.0,97709.0,0.30888813]
[1732442838392,0.099,97730.0,97714.0,0.15]
[1732442838886,0.099,97730.0,97715.0,0.00397765]
[1732442839403,0.15181739,97721.0,97715.0,0.00397765]
[1732442839664,0.023,97735.0,97715.0,0.00397765]
[1732442839665,0.023,97716.0,97715.0,0.00397765]
[1732442839903,0.023,97716.0,97702.0,0.2525]
[1732442840431,0.023,97716.0,97703.0,0.00376313]
[1732442842241,0.023,97716.0,97703.0,0.15376313]
[1732442846779,0.023,97716.0,97704.0,0.00716779]
[1732442847018,0.023,97716.0,97705.0,0.00716779]
[1732442847253,0.023,97716.0,97706.0,0.00716779]
[1732442847483,0.023,97716.0,97707.0,0.00716779]
[1732442847712,0.023,97716.0,97708.0,0.00716779]
[1732442847942,0.023,97716.0,97709.0,0.00716779]
[1732442848185,0.023,97716.0,97710.0,0.00716779]
[1732442848413,0.023,97716.0,97711.0,0.00716779]
[1732442848627,0.023,97716.0,97712.0,0.00716779]
[1732442848858,0.023,97716.0,97713.0,0.00716779]
[1732442849081,0.023,97716.0,97714.0,0.00716779]
[1732442849314,0.023,97716.0,97715.0,0.00716779]
[1732442850478,0.023,97716.0,97703.0,0.15]
[1732442850479,0.17481739,97711.0,97703.0,0.15]
[1732442850959,0.17481739,97711.0,97704.0,0.00377151]
[1732442851202,0.00127934,97710.0,97704.0,0.00377151]
[1732442851437,0.17481739,97711.0,97705.0,0.00716543]
[1732442851681,0.00127934,97710.0,97706.0,0.00716543]
[1732442851954,0.00127934,97710.0,97707.0,0.00716543]
[1732442852184,0.00127934,97710.0,97706.0,0.00377091]
[1732442852185,0.00127934,97710.0,97708.0,0.00716543]
[1732442852417,0.00127934,97710.0,97709.0,0.00716543]
[1732442852891,0.00127934,97710.0,97709.0,0.003781]
[1732442853140,0.00127934,97710.0,97709.0,0.01094505]
[1732442853359,0.00127934,97710.0,97709.0,0.00716405]
[1732442853576,0.00127934,97710.0,97709.0,0.01094505]
[1732442855414,0.15309673,97710.0,97709.0,0.003781]
[1732442855697,0.29859673,97710.0,97709.0,0.003781]
[1732442855913,0.29731739,97710.0,97709.0,0.00716228]
[1732442856129,0.29903599,97710.0,97709.0,0.00716228]
[1732442856779,0.023,97709.0,97707.0,0.0008593]
[1732442857013,0.02427934,97709.0,97707.0,0.0008593]
[1732442857226,0.02427934,97709.0,97708.0,0.01094289]
[1732442859741,0.02427934,97709.0,97708.0,0.01094105]
[1732442860388,0.17609673,97709.0,97708.0,0.01094105]
[1732442860623,0.22369673,97709.0,97708.0,0.01094105]
[1732442860865,0.22241739,97709.0,97708.0,0.01094105]
[1732442861778,0.22241739,97709.0,97708.0,0.003781]
[1732442861997,0.22241739,97709.0,97708.0,0.01094062]
[1732442862957,0.22241739,97709.0,97708.0,0.02239813]
[1732442863852,0.17650684,97709.0,97708.0,0.02239813]
[1732442864105,0.17778623,97709.0,97708.0,0.02239813]
[1732442865017,0.17778623,97709.0,97708.0,0.01094062]
[1732442870521,0.17778623,97709.0,97708.0,0.00715962]
[1732442872627,0.17778623,97709.0,97708.0,0.15715962]
[1732442872842,0.17778623,97709.0,97708.0,0.00715962]
[1732442873063,0.25290684,97709.0,97708.0,0.01093582]
[1732442873296,0.25290684,97709.0,97708.0,0.00715962]
[1732442873746,0.25290684,97709.0,97708.0,0.15715962]